[Event "GER-ch-Seniors-50 2019"]
[Site "Radebeul"]
[Date "2019.05.02"]
[Round "7.5"]
[White "Held, Peter"]
[Black "Bohnstorff, Michael"]
[Result "1/2-1/2"]
[ECO "A29"]
[WhiteElo "2179"]
[BlackElo "2044"]
[Annotator "NA"]
[PlyCount "81"]
[EventDate "2019.04.26"]
[EventType "swiss"]
[EventCountry "GER"]
[SourceTitle "playchess.com"]
[Source "ChessBase"]
[SourceQuality "1"]
[TimeControl "40/5400+30:1800+30"]

1. c4 {[%emt 0:00:00]} Nf6 {[%emt 0:00:14]} 2. Nc3 {[%emt 0:00:00]} e5 {[%emt 0:02:55]} 3. Nf3 {[%emt 0:02:00]} Nc6 {[%emt 0:00:48]} 4. g3 {[%emt 0:01:05]} Be7 {[%emt 0:00:25]} 5. Bg2 {[%emt 0:01:31]} O-O {[%emt 0:01:20]} 6. O-O {[%emt 0:01:19]} d6 {[%emt 0:00:37]} 7. Rb1 {[%emt 0:01:46] A29: English Opening: Four Knights Variation with 4 g3} Be6 {[%emt 0:09:30]} 8. Nd5 $2 $146 {[%emt 0:05:21]} ({Predecessor:} 8. d3 $11 Ne8 9. b4 Qc8 10. b5 Nb8 11. Ng5 Bxg5 12. Bxg5 f5 13. Nd5 Rf7 14. Ne7+ Rxe7 15. Bxe7 {1-0 (39) Anurag,M (2401)-Mayed,A (1781) Sharjah 2013}) 8... Nxd5 {[%emt 0:05:53]} 9. cxd5 {[%emt 0:03:32]} Bxd5 {[%emt 0:00:45]} 10. Qa4 {[%emt 0:00:42]} Bf6 {[%emt 0:14:03]} 11. e4 {[%emt 0:04:39]} Be6 {[%emt 0:00:15]} 12. b4 {[%emt 0:07:43]} Qd7 {[%emt 0:03:31]} (12... a6 $19 13. a3 g5) 13. Qc2 {[%emt 0:02:52]} (13. b5 $17 Ne7 14. d4) 13... a6 {[%emt 0:03:08]} 14. d3 {[%emt 0:04:19]} h6 {[%emt 0:03:36]} 15. Be3 {[%emt 0:05:48]} Rfc8 {[%emt 0:00:28]} 16. a4 {[%emt 0:04:16]} Bh3 {[%emt 0:08:14]} 17. b5 {[%emt 0:04:21]} axb5 {[%emt 0:00:09]} 18. axb5 {[%emt 0:00:20]} Nd8 {[%emt 0:00:23]} 19. d4 {[%emt 0:09:05]} Bxg2 {[%emt 0:02:14]} 20. Kxg2 {[%emt 0:04:11]} exd4 {[%emt 0:00:47]} 21. Nxd4 {[%emt 0:00:43]} Bxd4 {[%emt 0:00:57]} 22. Bxd4 {[%emt 0:00:03]} Ne6 {[%emt 0:00:10]} 23. Be3 {[%emt 0:00:16]} b6 {[%emt 0:03:51]} 24. Rfd1 {[%emt 0:02:33]} Qe8 {[%emt 0:01:39]} 25. Rd5 {[%emt 0:01:01]} f6 {[%emt 0:05:37]} 26. f4 {[%emt 0:06:06]} Qf7 {[%emt 0:07:07]} 27. Rb2 {[%emt 0:07:36]} Re8 {[%emt 0:00:46]} 28. Qc6 {[%emt 0:02:07]} (28. Bf2 $17 {was necessary.}) 28... Ra3 {[%emt 0:03:04]} 29. Re2 {[%emt 0:04:13]} Rea8 {[%emt 0:03:17]} 30. Qc4 {[%emt 0:07:10]} R8a4 {[%emt 0:03:38]} 31. Qc2 {[%emt 0:00:06]} Ra5 {[%emt 0:02:01]} 32. Qd2 {[%emt 0:01:46]} Qe8 {[%emt 0:02:20]} 33. e5 {[%emt 0:04:47]} Rxb5 {[%emt 0:02:48]} 34. Rxb5 {[%emt 0:02:09]} Qxb5 {[%emt 0:00:02]} 35. exd6 {[%emt 0:00:30]} Qc6+ {[%emt 0:00:56]} 36. Kf2 {[%emt 0:00:44]} Qxd6 {[%emt 0:04:10]} 37. Qxd6 {[%emt 0:00:06]} cxd6 {[%emt 0:00:03]} 38. Bc1 {[%emt 0:01:23]} Ra1 {[%emt 0:00:53]} 39. Rxe6 {[%emt 0:00:10]} Rxc1 {[%emt 0:00:05]} 40. Rxd6 {[%emt 0:00:14]} Rc2+ {[%emt 0:02:48]} 41. Kf3 $15 {[%emt 0:02:06]} 1/2-1/2

[Event "GER-ch-Seniors-50 2019"]
[Site "Radebeul"]
[Date "2019.05.02"]
[Round "7.6"]
[White "Schulze, Andreas"]
[Black "Kierzek, Mira"]
[Result "0-1"]
[ECO "B20"]
[WhiteElo "2135"]
[BlackElo "1978"]
[Annotator "NA"]
[PlyCount "132"]
[EventDate "2019.04.26"]
[EventType "swiss"]
[EventCountry "GER"]
[SourceTitle "playchess.com"]
[Source "ChessBase"]
[SourceQuality "1"]
[TimeControl "40/5400+30:1800+30"]

1. e4 {[%emt 0:00:00]} c5 {[%emt 0:00:00]} 2. d3 {[%emt 0:02:07]} Nc6 {[%emt 0:00:00]} 3. f4 {[%emt 0:00:09]} g6 {[%emt 0:01:09]} 4. Nf3 {[%emt 0:01:34]} Bg7 {[%emt 0:00:12]} 5. Be2 {[%emt 0:00:06]} d6 {[%emt 0:02:58]} 6. O-O {[%emt 0:00:13]} Nf6 {[%emt 0:00:44] B21: Sicilian: 2 f4 and Morra Gambit} (6... e6 7. c3 Nge7 8. Be3 f5 9. Na3 O-O 10. Qd2 b6 11. Rae1 Bb7 12. Bd1 Qd7 13. b4 Bxc3 14. Qxc3 cxb4 {½-½ (27) Tomashevsky,E (2705)-Shevchenko,K (2535) Skopje 2019}) 7. Qe1 {[%emt 0:07:20]} O-O {[%emt 0:10:35]} 8. c3 {[%emt 0:11:35]} e5 {[%emt 0:12:09]} 9. fxe5 $146 {[%emt 0:02:37]} ({Predecessor:} 9. Qh4 Nh5 10. fxe5 Qxh4 11. Nxh4 Nxe5 12. Bg5 Re8 13. Bxh5 gxh5 14. Rd1 Bg4 15. Rd2 c4 {0-1 (35) Gaciu,V (1968)-Deschenes,M (1864) Victoria 2009}) 9... dxe5 {[%emt 0:01:16]} 10. Na3 {[%emt 0:01:28]} a6 {[%emt 0:09:00]} 11. Nc4 {[%emt 0:02:45]} Ng4 {[%emt 0:11:06]} 12. a4 {[%emt 0:08:47]} Be6 {[%emt 0:04:15]} 13. Ne3 {[%emt 0:00:24]} Nxe3 {[%emt 0:02:28]} 14. Bxe3 {[%emt 0:00:07]} b6 {[%emt 0:02:07]} 15. Ng5 {[%emt 0:05:00]} Bd7 {[%emt 0:01:19]} 16. Bd1 {[%emt 0:16:20]} Qe7 {[%emt 0:05:17]} 17. Bb3 {[%emt 0:02:56]} Be8 {[%emt 0:02:44]} 18. Bd5 {[%emt 0:06:22]} Rc8 {[%emt 0:00:46] [#]} 19. Qd2 {[%emt 0:04:31]} ({But not} 19. Qh4 h6 $16) (19. Qg3 $1 $16 {[%cal Rg3h3]} Rc7 20. a5) 19... h6 {[%emt 0:07:30]} 20. Nh3 {[%emt 0:00:53]} Kh7 $1 {[%emt 0:00:19]} 21. Rf3 {[%emt 0:00:21]} Bd7 {[%emt 0:03:53]} 22. Raf1 {[%emt 0:06:50]} Nd8 {[%emt 0:03:24]} 23. Qc2 {[%emt 0:00:35]} Be6 {[%emt 0:02:45]} 24. Qb3 {[%emt 0:01:00]} Rc6 {[%emt 0:03:02]} 25. Qc4 {[%emt 0:02:07]} Qa7 {[%emt 0:03:10]} (25... a5 $11) 26. Qa2 {[%emt 0:06:08]} Rd6 {[%emt 0:01:58]} 27. c4 {[%emt 0:03:50]} Qc7 {[%emt 0:02:50]} 28. a5 {[%emt 0:00:58]} b5 {[%emt 0:03:13]} 29. cxb5 {[%emt 0:02:55]} axb5 {[%emt 0:00:10]} 30. Rc1 {[%emt 0:00:07]} Ra6 {[%emt 0:02:17]} 31. b4 {[%emt 0:00:39]} Nb7 {[%emt 0:00:51]} 32. Bxc5 {[%emt 0:02:10]} Nxc5 {[%emt 0:01:02]} 33. Rxc5 {[%emt 0:00:07]} Qd7 {[%emt 0:00:41]} 34. Qc2 {[%emt 0:00:33]} Ra7 {[%emt 0:00:35]} 35. Nf2 {[%emt 0:01:05]} Rd8 {[%emt 0:01:02]} 36. Nd1 {[%emt 0:01:20]} Bf8 {[%emt 0:00:12]} 37. Ne3 {[%emt 0:01:56]} Bxc5 {[%emt 0:00:21]} 38. Qxc5 {[%emt 0:00:13]} Rc8 {[%emt 0:00:55]} 39. Qb6 {[%emt 0:00:38] [#]} ({White should try} 39. Bxe6 $1 $11 Rxc5 40. Bxd7 Rc1+ 41. Rf1 Rxf1+ 42. Kxf1 Rxd7 43. Ke2) 39... Rc1+ $1 {[%emt 0:00:29]} 40. Kf2 {[%emt 0:00:03]} Rb1 $11 {[%emt 0:00:20]} (40... h5 $15 41. g4 h4) 41. Bxe6 {[%emt 0:17:37]} fxe6 {[%emt 0:00:19]} 42. Qb8 {[%emt 0:04:27]} Rb7 {[%emt 0:15:45]} 43. Qxe5 {[%emt 0:00:40]} Rxb4 {[%emt 0:00:39]} 44. Qc3 {[%emt 0:06:07]} Ra4 {[%emt 0:02:11]} 45. Rf8 {[%emt 0:01:45]} Qg7 {[%emt 0:00:24]} 46. Qc5 {[%emt 0:02:26]} Rf7+ {[%emt 0:00:17]} 47. Rxf7 {[%emt 0:00:04]} Qxf7+ {[%emt 0:00:14]} 48. Kg3 {[%emt 0:00:20]} g5 {[%emt 0:03:57]} 49. Qe5 {[%emt 0:01:38]} Qf4+ {[%emt 0:01:14]} 50. Qxf4 {[%emt 0:00:05]} gxf4+ {[%emt 0:00:05]} 51. Kxf4 {[%emt 0:00:02]} Rxa5 {[%emt 0:00:07]} 52. Ke5 {[%emt 0:01:04]} Ra3 {[%emt 0:02:45]} 53. Kxe6 Rxd3 {[%emt 0:00:14]} 54. Nd5 {[%emt 0:00:58]} Rd2 {[%emt 0:01:03]} 55. g4 {[%emt 0:00:14]} Rxh2 {[%emt 0:01:15]} 56. e5 {[%emt 0:00:02]} Rd2 {[%emt 0:03:26]} 57. Kd6 {[%emt 0:01:04]} Kg7 {[%emt 0:02:16]} 58. Kc5 {[%emt 0:00:04]} Kf7 {[%emt 0:00:34]} 59. Nf4 {[%emt 0:00:56]} b4 {[%emt 0:00:29]} 60. Kc4 {[%emt 0:00:15]} Rf2 {[%emt 0:00:34]} 61. Nd3 {[%emt 0:00:47]} Rf3 {[%emt 0:00:47]} 62. Nxb4 {[%emt 0:00:56]} Rf4+ {[%emt 0:00:24]} 63. Kc5 {[%emt 0:00:06]} Ke6 {[%emt 0:00:49]} 64. Nc6 {[%emt 0:00:17]} Rxg4 {[%emt 0:00:21]} 65. Nd8+ {[%emt 0:00:01]} Kxe5 {[%emt 0:00:24]} 66. Nf7+ {[%emt 0:00:04]} Kf6 {[%emt 0:00:24]} 0-1

[Event "GER-ch-Seniors-50 2019"]
[Site "Radebeul"]
[Date "2019.05.03"]
[Round "8.1"]
[White "Stahr, Ralf-Peter"]
[Black "Nekrasov, Mihail"]
[Result "1-0"]
[ECO "A28"]
[WhiteElo "2160"]
[BlackElo "2277"]
[Annotator "NA"]
[PlyCount "85"]
[EventDate "2019.04.26"]
[EventType "swiss"]
[EventCountry "GER"]
[SourceTitle "playchess.com"]
[Source "ChessBase"]
[SourceQuality "1"]
[TimeControl "40/5400+30:1800+30"]

1. c4 {[%emt 0:00:00]} Nf6 {[%emt 0:00:00]} 2. Nc3 {[%emt 0:00:00]} e5 {[%emt 0:00:00]} 3. Nf3 {[%emt 0:00:00]} Nc6 {[%emt 0:00:00]} 4. e3 {[%emt 0:00:00]} Bb4 {[%emt 0:00:15]} 5. Qc2 {[%emt 0:00:22]} Bxc3 {[%emt 0:00:17]} 6. Qxc3 {[%emt 0:00:29]} Qe7 {[%emt 0:00:18]} 7. Be2 {[%emt 0:00:43]} d5 {[%emt 0:00:59] A28: English Opening: Four Knights Variation} (7... O-O 8. d4 Ne4 9. Qc2 exd4 10. exd4 Qb4+ 11. Bd2 Nxd2 12. Qxd2 Qxd2+ 13. Kxd2 d6 14. h3 Bd7 15. Rhe1 Rfe8 {½-½ (30) Vitiugov,N (2709)-Kryvoruchko,Y (2698) Germany 2019}) 8. d4 {[%emt 0:02:51]} exd4 {[%emt 0:03:41]} 9. Nxd4 {[%emt 0:00:14]} Nxd4 {[%emt 0:00:12]} 10. Qxd4 {[%emt 0:01:26]} c5 {[%emt 0:00:12]} 11. Qf4 {[%emt 0:01:01]} O-O {[%emt 0:01:07]} 12. O-O {[%emt 0:00:21]} Be6 $146 {[%emt 0:12:26]} ({Predecessor:} 12... dxc4 13. Bxc4 Be6 {½-½ (80) Stocek,J (2576)-Georgiev,K (2595) Skopje 2018}) 13. b3 {[%emt 0:05:55]} dxc4 {[%emt 0:00:30]} 14. Bxc4 {[%emt 0:00:23]} Bxc4 {[%emt 0:01:31]} 15. Qxc4 {[%emt 0:00:12]} Rac8 {[%emt 0:03:00]} 16. Bb2 {[%emt 0:00:47]} Rfd8 {[%emt 0:03:57]} 17. Rad1 {[%emt 0:04:19]} Rxd1 {[%emt 0:00:30]} 18. Rxd1 {[%emt 0:00:04]} Rd8 {[%emt 0:00:13]} 19. Rxd8+ {[%emt 0:05:59]} Qxd8 {[%emt 0:00:02]} 20. h3 {[%emt 0:00:26]} b6 {[%emt 0:01:58]} 21. Qf4 {[%emt 0:02:49]} Ne8 {[%emt 0:01:52]} 22. Be5 {[%emt 0:07:33]} b5 {[%emt 0:10:16]} 23. Qe4 {[%emt 0:07:25]} Qe7 {[%emt 0:01:47]} 24. Qd5 {[%emt 0:00:44]} h6 {[%emt 0:01:31]} 25. Bb8 {[%emt 0:06:20]} Nf6 {[%emt 0:09:09]} 26. Qc6 $14 {[%emt 0:04:11]} Qd7 {[%emt 0:10:51]} 27. Qxc5 {[%emt 0:04:42]} a5 {[%emt 0:04:39]} 28. Be5 {[%emt 0:13:34]} Ne4 {[%emt 0:06:36]} 29. Qc2 {[%emt 0:01:49]} Qd5 {[%emt 0:01:32]} 30. Bd4 {[%emt 0:01:21]} b4 {[%emt 0:03:52]} 31. Qc8+ {[%emt 0:00:18]} Kh7 {[%emt 0:00:12]} 32. f3 {[%emt 0:03:04]} Nc3 {[%emt 0:02:00]} 33. Kf2 {[%emt 0:01:03]} Nb5 {[%emt 0:04:26]} 34. Qc2+ {[%emt 0:05:29]} g6 {[%emt 0:02:33]} 35. Qe4 {[%emt 0:00:35]} Qd7 {[%emt 0:02:14]} 36. Be5 {[%emt 0:03:44]} Qe6 {[%emt 0:06:06]} 37. Bd4 {[%emt 0:03:00]} Qd7 {[%emt 0:02:00]} 38. Qe5 {[%emt 0:01:28]} Nxd4 {[%emt 0:00:14]} 39. exd4 {[%emt 0:00:17]} Qa7 {[%emt 0:04:51]} 40. Kg3 {[%emt 0:00:59]} Qa6 {[%emt 0:00:50]} 41. d5 {[%emt 0:31:25]} Qb5 {[%emt 0:04:27]} 42. Qd4 {[%emt 0:00:00]} Qd7 {[%emt 0:00:23]} 43. d6 1-0

[Event "GER-ch-Seniors-50 2019"]
[Site "Radebeul"]
[Date "2019.05.03"]
[Round "8.2"]
[White "Belke, Frank"]
[Black "Wenner, Tobias"]
[Result "1/2-1/2"]
[ECO "E70"]
[WhiteElo "2283"]
[BlackElo "2108"]
[Annotator "NA"]
[PlyCount "84"]
[EventDate "2019.04.26"]
[EventType "swiss"]
[EventCountry "GER"]
[SourceTitle "playchess.com"]
[Source "ChessBase"]
[SourceQuality "1"]
[TimeControl "40/5400+30:1800+30"]

1. d4 {[%emt 0:00:00]} Nf6 {[%emt 0:00:00]} 2. c4 {[%emt 0:00:00]} g6 {[%emt 0:00:00]} 3. Nc3 {[%emt 0:00:00]} Bg7 {[%emt 0:00:00]} 4. e4 {[%emt 0:00:00]} d6 {[%emt 0:00:00]} 5. Nge2 {[%emt 0:00:00]} O-O {[%emt 0:00:16]} 6. Ng3 {[%emt 0:00:00]} e5 {[%emt 0:00:20]} 7. d5 {[%emt 0:00:00]} a5 {[%emt 0:00:14]} 8. h4 {[%emt 0:00:00] E70: King's Indian: Miscellaneous lines with 4 e4, including 5 Nge2 and 5 Bd3 0-0 6 Nge2} h5 {[%emt 0:00:24]} 9. Bg5 {[%emt 0:00:00]} Na6 {[%emt 0:01:36]} 10. Qd2 {[%emt 0:00:03]} (10. Be2 Qe8 11. Qc2 Bd7 12. f3 Nh7 13. Be3 Qe7 14. Nf1 f5 15. O-O-O Nb4 {½-½ (65) Le,Q (2714)-Demchenko,A (2679) St Petersburg 2018}) 10... Qe8 {[%emt 0:16:04]} 11. O-O-O {[%emt 0:00:29]} Nc5 {[%emt 0:03:32]} 12. f3 {[%emt 0:01:01]} Bd7 {[%emt 0:01:48]} 13. Be2 {[%emt 0:00:58]} Nh7 {[%emt 0:00:17]} 14. Be3 {[%emt 0:02:31]} b6 {[%emt 0:00:09]} 15. Kb1 {[%emt 0:01:56]} a4 {[%emt 0:03:30]} 16. Nb5 {[%emt 0:12:12]} Qd8 {[%emt 0:09:06]} 17. Bd3 $146 {[%emt 0:13:31]} ({Predecessor:} 17. Rdg1 Nf6 18. Bd3 Kh7 19. Ne2 Rh8 {1-0 (61) Beecham,C (2459)-Pugh,J (2472) ICCF email 2014}) 17... Nxd3 {[%emt 0:05:53]} 18. Qxd3 {[%emt 0:01:53]} f5 {[%emt 0:00:59]} 19. exf5 {[%emt 0:03:48]} Bxf5 {[%emt 0:03:52]} 20. Nxf5 {[%emt 0:00:40]} Rxf5 {[%emt 0:01:58]} 21. Rdf1 {[%emt 0:02:32]} Nf6 $16 {[%emt 0:06:07]} 22. Bg5 {[%emt 0:08:42]} Qd7 {[%emt 0:01:27]} 23. Qc2 {[%emt 0:05:20]} Nxd5 {[%emt 0:16:28]} 24. g4 {[%emt 0:02:27]} hxg4 {[%emt 0:01:50]} 25. fxg4 {[%emt 0:00:01]} Rxf1+ {[%emt 0:00:18]} 26. Rxf1 {[%emt 0:00:01]} Nf4 {[%emt 0:00:52]} 27. Bxf4 {[%emt 0:01:09]} exf4 {[%emt 0:00:05]} 28. Qxg6 {[%emt 0:01:15]} Rf8 {[%emt 0:06:17]} 29. h5 {[%emt 0:03:42]} Qf7 {[%emt 0:00:49]} 30. Qxf7+ {[%emt 0:01:44]} Rxf7 {[%emt 0:00:04]} 31. Rf3 {[%emt 0:00:12]} Be5 {[%emt 0:01:49]} 32. Kc2 {[%emt 0:11:32]} Rg7 {[%emt 0:00:26]} 33. Kd3 {[%emt 0:00:09]} Rxg4 {[%emt 0:00:27]} 34. b3 {[%emt 0:03:42]} c6 {[%emt 0:05:15]} 35. Na7 {[%emt 0:03:59]} axb3 {[%emt 0:00:57]} 36. axb3 {[%emt 0:00:01]} c5 {[%emt 0:01:30]} 37. Nc8 {[%emt 0:03:44]} Kg7 {[%emt 0:04:49]} 38. Ke4 {[%emt 0:06:22]} Rg3 {[%emt 0:02:09]} 39. Ne7 {[%emt 0:01:50]} Kf6 {[%emt 0:02:46]} 40. Nd5+ {[%emt 0:09:30]} Kg5 {[%emt 0:00:21]} 41. h6 {[%emt 0:03:29]} Kxh6 {[%emt 0:08:08]} 42. Nxf4 {[%emt 0:01:10]} Rxf3 {[%emt 0:00:36]} 1/2-1/2

[Event "GER-ch-Seniors-50 2019"]
[Site "Radebeul"]
[Date "2019.05.03"]
[Round "8.3"]
[White "Schatz, Christian"]
[Black "Mueller, Michael"]
[Result "1/2-1/2"]
[ECO "A14"]
[WhiteElo "2150"]
[BlackElo "2163"]
[Annotator "NA"]
[PlyCount "25"]
[EventDate "2019.04.26"]
[EventType "swiss"]
[EventCountry "GER"]
[SourceTitle "playchess.com"]
[Source "ChessBase"]
[SourceQuality "1"]
[TimeControl "40/5400+30:1800+30"]

1. c4 {[%emt 0:00:00]} e6 {[%emt 0:00:00]} 2. Nf3 {[%emt 0:00:00]} d5 {[%emt 0:00:00]} 3. g3 {[%emt 0:01:18]} Nf6 {[%emt 0:00:34]} 4. Bg2 {[%emt 0:00:04]} Be7 {[%emt 0:00:51]} 5. O-O {[%emt 0:02:00]} O-O {[%emt 0:00:49]} 6. d4 {[%emt 0:00:37]} b6 {[%emt 0:01:29]} 7. Nc3 {[%emt 0:00:09]} Bb7 {[%emt 0:00:10]} 8. Ne5 {[%emt 0:00:27]} Nbd7 {[%emt 0:00:16]} 9. Bg5 {[%emt 0:02:38]} h6 {[%emt 0:01:13]} 10. Nxd7 {[%emt 0:02:55]} Qxd7 {[%emt 0:00:22]} 11. Bxf6 {[%emt 0:00:25]} Bxf6 {[%emt 0:00:29]} 12. cxd5 {[%emt 0:00:48]} exd5 {[%emt 0:00:24]} 13. e3 1/2-1/2

[Event "GER-ch-Seniors-50 2019"]
[Site "Radebeul"]
[Date "2019.05.03"]
[Round "8.4"]
[White "Koehler, Gerhard"]
[Black "Schmidt, Gerhard"]
[Result "0-1"]
[ECO "E98"]
[WhiteElo "2153"]
[BlackElo "2077"]
[Annotator "NA"]
[PlyCount "106"]
[EventDate "2019.04.26"]
[EventType "swiss"]
[EventCountry "GER"]
[SourceTitle "playchess.com"]
[Source "ChessBase"]
[SourceQuality "1"]
[TimeControl "40/5400+30:1800+30"]

1. c4 {[%emt 0:00:00]} Nf6 {[%emt 0:00:00]} 2. Nc3 {[%emt 0:00:00]} g6 {[%emt 0:00:00]} 3. e4 {[%emt 0:00:00]} d6 {[%emt 0:00:07]} 4. d4 {[%emt 0:00:00]} Bg7 {[%emt 0:00:12]} 5. Be2 {[%emt 0:00:05]} O-O {[%emt 0:00:17]} 6. Nf3 {[%emt 0:00:14]} e5 {[%emt 0:00:22]} 7. O-O {[%emt 0:00:09]} Nc6 {[%emt 0:00:18]} 8. d5 {[%emt 0:00:09]} Ne7 {[%emt 0:00:11]} 9. Ne1 {[%emt 0:00:10]} Nd7 {[%emt 0:00:32]} 10. Be3 {[%emt 0:00:13]} f5 {[%emt 0:00:32]} 11. f3 {[%emt 0:01:09]} f4 {[%emt 0:00:31]} 12. Bf2 {[%emt 0:00:35]} g5 {[%emt 0:00:19]} 13. a4 {[%emt 0:00:13]} a5 {[%emt 0:00:34]} 14. Nd3 {[%emt 0:01:15]} b6 {[%emt 0:01:12]} 15. Nb5 {[%emt 0:01:58]} Nf6 {[%emt 0:01:32]} 16. b4 {[%emt 0:15:19]} axb4 {[%emt 0:00:27]} 17. Be1 {[%emt 0:00:24]} g4 {[%emt 0:06:47]} 18. Bxb4 {[%emt 0:08:54]} Ng6 {[%emt 0:14:17]} 19. fxg4 {[%emt 0:29:17]} Nxe4 {[%emt 0:00:54]} 20. a5 {[%emt 0:00:02]} Ng5 {[%emt 0:38:46]} 21. axb6 {[%emt 0:07:33]} Rxa1 {[%emt 0:00:38]} 22. Qxa1 {[%emt 0:00:01]} e4 {[%emt 0:01:53]} 23. bxc7 {[%emt 0:00:09]} Qd7 {[%emt 0:01:55]} 24. Qd1 {[%emt 0:02:12]} f3 {[%emt 0:14:04]} 25. Bxf3 {[%emt 0:01:05]} exf3 {[%emt 0:00:51]} 26. Bxd6 {[%emt 0:09:15]} Qxg4 {[%emt 0:01:54]} 27. Bg3 {[%emt 0:01:15]} Qxc4 {[%emt 0:01:48]} 28. Nd6 {[%emt 0:02:48]} Qxc7 {[%emt 0:05:33]} 29. Nxc8 {[%emt 0:01:24]} Qxc8 {[%emt 0:00:08]} 30. gxf3 {[%emt 0:00:35]} Bd4+ {[%emt 0:01:54]} 31. Kh1 {[%emt 0:01:17]} Qf5 {[%emt 0:01:58]} 32. d6 {[%emt 0:00:53]} Qd7 {[%emt 0:02:56]} 33. Nf4 {[%emt 0:03:44]} Nxf4 {[%emt 0:00:44]} 34. Qxd4 {[%emt 0:00:15]} Nfe6 {[%emt 0:00:41]} 35. Qd5 {[%emt 0:01:12]} Rc8 {[%emt 0:01:32]} 36. f4 {[%emt 0:04:34]} Nf7 {[%emt 0:00:20]} 37. f5 {[%emt 0:00:26]} Ned8 {[%emt 0:00:24]} 38. Kg1 {[%emt 0:02:13]} Qc6 {[%emt 0:00:40]} 39. Qd1 {[%emt 0:00:32]} Qc5+ {[%emt 0:00:11]} 40. Kh1 {[%emt 0:00:55]} Qc6+ {[%emt 0:00:22]} 41. Kg1 {[%emt 0:30:28]} Qe4 {[%emt 0:08:05]} 42. Rf4 {[%emt 0:00:00]} Qe3+ {[%emt 0:01:50]} 43. Kg2 {[%emt 0:00:00]} Kf8 {[%emt 0:06:07]} 44. Qg4 {[%emt 0:00:00]} Nxd6 {[%emt 0:04:53]} 45. Qh4 {[%emt 0:04:35]} N8f7 {[%emt 0:01:28]} 46. Kh3 {[%emt 0:03:37]} h6 {[%emt 0:03:40]} 47. Qf6 {[%emt 0:00:14]} Ne4 {[%emt 0:01:19]} 48. Qa6 {[%emt 0:01:22]} Rc2 {[%emt 0:02:39]} 49. Qa8+ {[%emt 0:00:56]} Kg7 {[%emt 0:00:23]} 50. f6+ {[%emt 0:00:36]} Kh7 {[%emt 0:01:10]} 51. Qb7 {[%emt 0:00:37]} Kg6 {[%emt 0:02:29]} 52. Rg4+ {[%emt 0:00:17]} Nfg5+ {[%emt 0:00:24]} 53. Kh4 {[%emt 0:00:06]} Rxh2+ 0-1

[Event "GER-ch-Seniors-50 2019"]
[Site "Radebeul"]
[Date "2019.05.03"]
[Round "8.5"]
[White "Loew, Gerald"]
[Black "Kierzek, Mira"]
[Result "1-0"]
[ECO "A36"]
[WhiteElo "2157"]
[BlackElo "1978"]
[Annotator "NA"]
[PlyCount "105"]
[EventDate "2019.04.26"]
[EventType "swiss"]
[EventCountry "GER"]
[SourceTitle "playchess.com"]
[Source "ChessBase"]
[SourceQuality "1"]
[TimeControl "40/5400+30:1800+30"]

1. c4 {[%emt 0:00:00]} c5 {[%emt 0:00:00]} 2. g3 {[%emt 0:00:00]} Nc6 {[%emt 0:00:00]} 3. Bg2 {[%emt 0:00:00]} g6 {[%emt 0:00:11]} 4. Nc3 {[%emt 0:00:08]} Bg7 {[%emt 0:00:59]} 5. a3 {[%emt 0:00:11]} a5 {[%emt 0:01:06]} 6. Nf3 {[%emt 0:02:53]} e5 {[%emt 0:01:59]} 7. d4 {[%emt 0:04:33]} cxd4 {[%emt 0:04:29]} 8. Nb5 {[%emt 0:00:11]} d6 {[%emt 0:08:29]} 9. e3 {[%emt 0:00:16]} Nge7 {[%emt 0:01:31]} 10. exd4 {[%emt 0:01:39]} O-O {[%emt 0:02:37]} 11. O-O {[%emt 0:04:59]} Rb8 {[%emt 0:18:20]} 12. d5 {[%emt 0:08:57]} e4 {[%emt 0:00:53]} 13. Ng5 {[%emt 0:08:53]} Ne5 {[%emt 0:01:07]} 14. Nxe4 {[%emt 0:01:46]} Nxc4 {[%emt 0:01:56]} 15. Qb3 {[%emt 0:01:57]} f5 {[%emt 0:04:53]} 16. Qxc4 {[%emt 0:13:45]} fxe4 {[%emt 0:00:52]} 17. Qxe4 {[%emt 0:05:45]} Bf5 {[%emt 0:00:22]} 18. Qe2 {[%emt 0:00:48]} Re8 {[%emt 0:09:36]} 19. Re1 {[%emt 0:06:01]} Qd7 {[%emt 0:04:41]} 20. Bg5 {[%emt 0:06:48]} Nc6 {[%emt 0:02:16]} 21. dxc6 {[%emt 0:06:46]} bxc6 {[%emt 0:00:35]} 22. Qc4+ {[%emt 0:05:11]} d5 {[%emt 0:00:24]} 23. Rxe8+ {[%emt 0:00:41]} Rxe8 {[%emt 0:05:24]} 24. Qc5 {[%emt 0:02:06]} cxb5 {[%emt 0:08:19]} 25. Bxd5+ {[%emt 0:01:13]} Kh8 {[%emt 0:00:09]} 26. Bc6 {[%emt 0:00:55]} Rc8 {[%emt 0:00:26]} 27. Rc1 {[%emt 0:05:15]} Qd4 {[%emt 0:09:09]} 28. Qxd4 {[%emt 0:04:22]} Bxd4 {[%emt 0:00:07]} 29. Bxb5 {[%emt 0:01:41]} Bxb2 {[%emt 0:00:50]} 30. Rxc8+ {[%emt 0:00:38]} Bxc8 {[%emt 0:00:02]} 31. a4 {[%emt 0:01:45]} Bc3 {[%emt 0:00:14]} 32. Bh6 {[%emt 0:01:20]} Be6 {[%emt 0:01:20]} 33. f3 {[%emt 0:01:12]} Kg8 {[%emt 0:00:25]} 34. Be8 {[%emt 0:01:05]} Bf7 {[%emt 0:01:14]} 35. Bxf7+ {[%emt 0:00:50]} Kxf7 {[%emt 0:00:10]} 36. Kf2 {[%emt 0:00:23]} Ke6 {[%emt 0:00:54]} 37. Ke3 {[%emt 0:00:34]} Kd5 {[%emt 0:00:16]} 38. Kd3 {[%emt 0:00:08]} Bb4 {[%emt 0:03:08]} 39. Be3 {[%emt 0:01:18]} Be1 {[%emt 0:03:45]} 40. Bd4 {[%emt 0:00:34]} Bb4 {[%emt 0:00:13]} 41. Bc3 {[%emt 0:04:27]} Kc5 {[%emt 0:01:17]} 42. f4 {[%emt 0:09:30]} h5 {[%emt 0:07:30]} 43. h3 {[%emt 0:00:57]} Bxc3 {[%emt 0:03:04]} 44. Kxc3 {[%emt 0:00:12]} Kd5 {[%emt 0:00:05]} 45. Kd3 {[%emt 0:01:09]} Kc5 {[%emt 0:00:09]} 46. g4 {[%emt 0:01:16]} hxg4 {[%emt 0:01:52]} 47. hxg4 {[%emt 0:00:05]} Kd5 {[%emt 0:04:53]} 48. Ke3 {[%emt 0:01:59]} Kc5 {[%emt 0:04:06]} 49. f5 {[%emt 0:03:12]} gxf5 {[%emt 0:00:09]} 50. gxf5 {[%emt 0:00:05]} Kd5 {[%emt 0:00:33]} 51. Kf4 {[%emt 0:00:18]} Kd6 {[%emt 0:00:32]} 52. Kg5 {[%emt 0:00:13]} Ke7 {[%emt 0:00:18]} 53. Kg6 {[%emt 0:00:06]} 1-0